Workbook

Sheet Endkampf Mannschaften
A1: Mannschaftsergebnisse Endkampf Bezirksdamenschießen 2018 Auflage
A3: Schützengau Kitzingen
A4: Namen | B4: Gau | C4: 1. Serie | D4: 2. Serie | E4: 3. Serie | F4: Ergebnis | G4: Differenz | H4: Tiefschuss | I4: Punkte
A5: Wittel Monika | B5: =IF(A5>1,$A$3,"") -> Schützengau Kitzingen | C5: 104.9 | D5: 104.5 | E5: 104.7 | F5: =SUM(C5:E5) -> 314.1 | G5: =IF(A5>1,327-F5,0) -> 12.9 | H5: 15 | I5: =IF(C5>1,SUM(G5:H5),0) -> 27.9 | J5: =IF(A5>1,1,"") -> 1
A6: Bauer Birgit | B6: =IF(A6>1,$A$3,"") -> Schützengau Kitzingen | C6: 102.5 | D6: 102 | E6: 105 | F6: =SUM(C6:E6) -> 309.5 | G6: =IF(A6>1,327-F6,0) -> 17.5 | H6: 35.4 | I6: =IF(C6>1,SUM(G6:H6),0) -> 52.9 | J6: =IF(A6>1,1,"") -> 1 | K6: =IF(K7=3,MAXA(I5:I7),0) -> 0 | L6: Ergebnisse Vorkampf | M6: Gesamt
F7: 0 | G7: =IF(A7>1,327-F7,0) -> 0 | I7: =IF(C7>1,SUM(G7:H7),0) -> 0 | K7: =COUNT(J5:J7) -> 2
H8: Gesamt: | I8: =I5+I6+I7-K6 -> 80.8 | L8: 139.2 | M8: =I8+L8 -> 220
A12: Schützengau Main-Spessart
A13: Namen | B13: Gau | C13: 1. Serie | D13: 2. Serie | E13: 3. Serie | F13: Ergebnis | G13: Differenz | H13: Tiefschuss | I13: Punkte
A14: Oster Sigrid | B14: =IF(A14>1,$A$12,"") -> Schützengau Main-Spessart | C14: 104.4 | D14: 103.3 | E14: 103.7 | F14: =SUM(C14:E14) -> 311.4 | G14: =IF(A14>1,327-F14,0) -> 15.6 | H14: 21.6 | I14: =IF(C14>1,SUM(G14:H14),0) -> 37.2 | J14: =IF(A14>1,1,"") -> 1
A15: Behl Herta | B15: =IF(A15>1,$A$12,"") -> Schützengau Main-Spessart | C15: 103.7 | D15: 102.3 | E15: 101.1 | F15: 307.1 | G15: =IF(A15>1,327-F15,0) -> 19.9 | H15: 43.1 | I15: =IF(C15>1,SUM(G15:H15),0) -> 63 | J15: =IF(A15>1,1,"") -> 1 | K15: =IF(K16=3,MAXA(I14:I16),0) -> 0 | L15: Ergebnisse Vorkampf | M15: Gesamt
F16: 0 | G16: =IF(A16>1,327-F16,0) -> 0 | I16: 0 | K16: =COUNT(J14:J16) -> 2
H17: Gesamt: | I17: =I14+I15+I16-K15 -> 100.2 | L17: 150.6 | M17: =I17+L17 -> 250.8
A20: Schützengau Rhön-Grabfeld
A21: Namen | B21: Gau | C21: 1. Serie | D21: 2. Serie | E21: 3. Serie | F21: Ergebnis | G21: Differenz | H21: Tiefschuss | I21: Punkte
A22: Söder Helene | B22: =IF(A22>1,$A$20,"") -> Schützengau Rhön-Grabfeld | C22: 100.5 | D22: 99.1 | E22: 101.5 | F22: =SUM(C22:E22) -> 301.1 | G22: =IF(A22>1,327-F22,0) -> 25.9 | H22: 47.4 | I22: =IF(C22>1,SUM(G22:H22),0) -> 73.3 | J22: =IF(A22>1,1,"") -> 1
A23: nicht angetreten | B23: =IF(A23>1,$A$20,"") -> Schützengau Rhön-Grabfeld | C23: 2 | F23: =SUM(C23:E23) -> 2 | G23: =IF(A23>1,327-F23,0) -> 325 | H23: 1382.9 | I23: =IF(C23>1,SUM(G23:H23),0) -> 1707.9 | J23: =IF(A23>1,1,"") -> 1 | K23: =IF(K24=3,MAXA(I22:I24),0) -> 0 | L23: Ergebnisse Vorkampf | M23: Gesamt
F24: 0 | G24: 0 | I24: 0 | K24: =COUNT(J22:J24) -> 2
H25: Gesamt: | I25: =I22+I23+I24-K23 -> 1781.2 | L25: 218.8 | M25: =I25+L25 -> 2000
A28: Schützengau Schweinfurt
A29: Namen | B29: Gau | C29: 1. Serie | D29: 2. Serie | E29: 3. Serie | F29: Ergebnis | G29: Differenz | H29: Tiefschuss | I29: Punkte
A30: Reichert Christine | B30: =IF(A30>1,$A$28,"") -> Schützengau Schweinfurt | C30: 102.3 | D30: 97.7 | E30: 100.9 | F30: =SUM(C30:E30) -> 300.9 | G30: =IF(A30>1,327-F30,0) -> 26.1 | H30: 48.8 | I30: =IF(C30>1,SUM(G30:H30),0) -> 74.9 | J30: =IF(A30>1,1,"") -> 1
A31: Sittler Gudrun | B31: =IF(A31>1,$A$28,"") -> Schützengau Schweinfurt | C31: 102.6 | D31: 102.9 | E31: 102.2 | F31: =SUM(C31:E31) -> 307.7 | G31: =IF(A31>1,327-F31,0) -> 19.3 | H31: 32 | I31: =IF(C31>1,SUM(G31:H31),0) -> 51.3 | J31: =IF(A31>1,1,"") -> 1 | K31: =IF(K32=3,MAXA(I30:I32),0) -> 74.9 | L31: Ergebnisse Vorkampf | M31: Gesamt
A32: Schad Roswitha | B32: Schützengau Schweinfurt | C32: 105.8 | D32: 99.7 | E32: 105.6 | F32: =SUM(C32:E32) -> 311.1 | G32: =IF(A32>1,327-F32,0) -> 15.9 | H32: 33.5 | I32: 49.4 | J32: 1 | K32: =COUNT(J30:J32) -> 3
H33: Gesamt: | I33: =I30+I31+I32-K31 -> 100.7 | L33: 211.2 | M33: =L33+I33 -> 311.9
A36: Schützengau Rhön-Saale
A37: Namen | B37: Gau | C37: 1. Serie | D37: 2. Serie | E37: 3. Serie | F37: Ergebnis | G37: Differenz | H37: Tiefschuss | I37: Punkte
A38: nicht angetreten | B38: =IF(A38>1,$A$36,"") -> Schützengau Rhön-Saale | C38: 2 | F38: =SUM(C38:E38) -> 2 | G38: =IF(A38>1,327-F38,0) -> 325 | H38: 1317.6 | I38: =IF(C38>1,SUM(G38:H38),0) -> 1642.6 | J38: =IF(A38>1,1,"") -> 1
B39: =IF(A39>1,$A$36,"") ->  | F39: =SUM(C39:E39) -> 0 | G39: =IF(A39>1,327-F39,0) -> 0 | I39: =IF(C39>1,SUM(G39:H39),0) -> 0 | J39: =IF(A39>1,1,"") ->  | K39: =IF(K40=3,MAXA(I38:I40),0) -> 0 | L39: Ergebnisse Vorkampf | M39: Gesamt
F40: =SUM(C40:E40) -> 0 | G40: =IF(A40>1,327-F40,0) -> 0 | I40: 0 | K40: =COUNT(J38:J40) -> 1
H41: Gesamt: | I41: =I38+I39+I40-K39 -> 1642.6 | L41: 357.4 | M41: =L41+I41 -> 2000

Sheet Endstand Mannschaften
A1: Platz | B1: Gau | C1: 1. Schützin | D1: 2. Schützin | E1: 3. Schützin | F1: Punkte
A2: 1. | B2: ='Endkampf Mannschaften '!A3 -> Schützengau Kitzingen | C2: ='Endkampf Mannschaften '!A5 -> Wittel Monika | D2: ='Endkampf Mannschaften '!A6 -> Bauer Birgit | E2: ='Endkampf Mannschaften '!A7 -> 0 | F2: ='Endkampf Mannschaften '!M8 -> 220
A3: 2. | B3: ='Endkampf Mannschaften '!A12 -> Schützengau Main-Spessart | C3: ='Endkampf Mannschaften '!A14 -> Oster Sigrid | D3: ='Endkampf Mannschaften '!A15 -> Behl Herta | E3: ='Endkampf Mannschaften '!A16 -> 0 | F3: ='Endkampf Mannschaften '!M17 -> 250.8
A4: 3. | B4: ='Endkampf Mannschaften '!A28 -> Schützengau Schweinfurt | C4: ='Endkampf Mannschaften '!A30 -> Reichert Christine | D4: ='Endkampf Mannschaften '!A31 -> Sittler Gudrun | E4: ='Endkampf Mannschaften '!A32 -> Schad Roswitha | F4: ='Endkampf Mannschaften '!M33 -> 311.9
A5: 4. | B5: ='Endkampf Mannschaften '!A36 -> Schützengau Rhön-Saale
A6: 5. | B6: ='Endkampf Mannschaften '!A20 -> Schützengau Rhön-Grabfeld

Sheet Finale
B1: Bezirksdamenschießen 2018 | J1: Finalschießen - Auflage
B3: Platz | C3: Name | D3: Gau | E3: Ergebnis Vorkampf | F3: 1. Schuss | G3: 2. Schuss | H3: 3. Schuss | I3: 4. Schuss | J3: 5. Schuss | K3: 6. Schuss | L3: 7. Schuss | M3: 8. Schuss | N3: 9. Schuss | O3: 10. Schuss | P3: Gesamt
B4: 1 | C4: =Punkteverhältnis!B4 -> Wittel Monika | D4: =Punkteverhältnis!C4 -> Schützengau Kitzingen | E4: =Punkteverhältnis!J4 -> 27.9 | F4: 10.5 | G4: 10.4 | H4: 10.6 | I4: 10.5 | J4: 10.7 | K4: 10.4 | L4: 10.6 | M4: 10.8 | N4: 10.7 | O4: 10.6 | P4: =SUM(F4:O4) -> 105.8
B5: 2 | C5: =Punkteverhältnis!B8 -> Bauer Birgit | D5: =Punkteverhältnis!C8 -> Schützengau Kitzingen | E5: =Punkteverhältnis!J8 -> 52.9 | F5: 10.7 | G5: 10 | H5: 10.5 | I5: 10.9 | J5: 10 | K5: 10.2 | L5: 10.7 | M5: 10.7 | N5: 10.3 | O5: 10.2 | P5: 104.2
B6: 3 | C6: =Punkteverhältnis!B6 -> Schad Roswitha | D6: =Punkteverhältnis!C6 -> Schützengau Schweinfurt | E6: =Punkteverhältnis!J6 -> 49.4 | F6: 9.8 | G6: 10.5 | H6: 10.7 | I6: 10.6 | J6: 10.5 | K6: 10.6 | L6: 10.5 | M6: 10.2 | N6: 10.1 | O6: 10.6 | P6: 104.1
B7: 4 | C7: =Punkteverhältnis!B5 -> Oster Sigrid | D7: =Punkteverhältnis!C5 -> Schützengau Main-Spessart | E7: =Punkteverhältnis!J5 -> 37.2 | F7: 10 | G7: 10.3 | H7: 10.1 | I7: 10.4 | J7: 10.8 | K7: 10.4 | L7: 10.4 | M7: 10.8 | N7: 10 | O7: 10.6 | P7: 103.8
B8: 5 | C8: =Punkteverhältnis!B11 -> Reichert Christine | D8: =Punkteverhältnis!C11 -> Schützengau Schweinfurt | E8: =Punkteverhältnis!J11 -> 74.9 | F8: 10.7 | G8: 10.3 | H8: 10.4 | I8: 9.6 | J8: 9.8 | K8: 10.5 | L8: 10 | M8: 10.4 | N8: 10.2 | O8: 10.2 | P8: 102.1
B9: 6 | C9: =Punkteverhältnis!B7 -> Sittler Gudrun | D9: =Punkteverhältnis!C7 -> Schützengau Schweinfurt | E9: =Punkteverhältnis!J7 -> 51.3 | F9: 9.8 | G9: 10.1 | H9: 10.1 | I9: 10 | J9: 10.7 | K9: 10.4 | L9: 10.1 | M9: 9.6 | N9: 10.2 | O9: 10.6 | P9: 101.6
B10: 7 | C10: =Punkteverhältnis!B10 -> Söder Helene | D10: =Punkteverhältnis!C10 -> Schützengau Rhön-Grabfeld | E10: =Punkteverhältnis!J10 -> 73.3 | F10: 10.8 | G10: 10.7 | H10: 10.4 | I10: 9.7 | J10: 10.2 | K10: 9.1 | L10: 10.6 | M10: 10.7 | N10: 9.8 | O10: 9.6 | P10: 101.6
B11: 8 | C11: =Punkteverhältnis!B9 -> Behl Herta | D11: =Punkteverhältnis!C9 -> Schützengau Main-Spessart | E11: =Punkteverhältnis!J9 -> 63 | F11: 10.6 | G11: 9.7 | H11: 9.4 | I11: 9.8 | J11: 10.6 | K11: 9.7 | L11: 9.8 | M11: 9.9 | N11: 9.8 | O11: 10.8 | P11: 100.1

Sheet Tiefschuss
A1: Einzelergebnisse Endkampf Bezirksdamenschießen 2018
A2: Bester Tiefschuß (Auflage)
A3: Platz | B3: Name | C3: Gau | D3: 1. Serie | E3: 2. Serie | F3: 3. Serie | G3: Ergebnis | H3: Differenz | I3: Tiefschuss | J3: Punkte
A4: 1. | B4: ='Endkampf Mannschaften '!A5 -> Wittel Monika | C4: ='Endkampf Mannschaften '!B5 -> Schützengau Kitzingen | D4: ='Endkampf Mannschaften '!C5 -> 104.9 | E4: ='Endkampf Mannschaften '!D5 -> 104.5 | F4: ='Endkampf Mannschaften '!E5 -> 104.7 | G4: ='Endkampf Mannschaften '!F5 -> 314.1 | H4: ='Endkampf Mannschaften '!G5 -> 12.9 | I4: ='Endkampf Mannschaften '!H5 -> 15 | J4: ='Endkampf Mannschaften '!I5 -> 27.9
A5: 2. | B5: ='Endkampf Mannschaften '!A14 -> Oster Sigrid | C5: ='Endkampf Mannschaften '!B14 -> Schützengau Main-Spessart | D5: ='Endkampf Mannschaften '!C14 -> 104.4 | E5: ='Endkampf Mannschaften '!D14 -> 103.3 | F5: ='Endkampf Mannschaften '!E14 -> 103.7 | G5: ='Endkampf Mannschaften '!F14 -> 311.4 | H5: ='Endkampf Mannschaften '!G14 -> 15.6 | I5: ='Endkampf Mannschaften '!H14 -> 21.6 | J5: ='Endkampf Mannschaften '!I14 -> 37.2
A6: 3. | B6: ='Endkampf Mannschaften '!A31 -> Sittler Gudrun | C6: ='Endkampf Mannschaften '!B31 -> Schützengau Schweinfurt | D6: ='Endkampf Mannschaften '!C31 -> 102.6 | E6: ='Endkampf Mannschaften '!D31 -> 102.9 | F6: ='Endkampf Mannschaften '!E31 -> 102.2 | G6: ='Endkampf Mannschaften '!F31 -> 307.7 | H6: ='Endkampf Mannschaften '!G31 -> 19.3 | I6: ='Endkampf Mannschaften '!H31 -> 32 | J6: ='Endkampf Mannschaften '!I31 -> 51.3
A7: 4. | B7: ='Endkampf Mannschaften '!A32 -> Schad Roswitha | C7: ='Endkampf Mannschaften '!B32 -> Schützengau Schweinfurt | D7: ='Endkampf Mannschaften '!C32 -> 105.8 | E7: ='Endkampf Mannschaften '!D32 -> 99.7 | F7: ='Endkampf Mannschaften '!E32 -> 105.6 | G7: ='Endkampf Mannschaften '!F32 -> 311.1 | H7: ='Endkampf Mannschaften '!G32 -> 15.9 | I7: ='Endkampf Mannschaften '!H32 -> 33.5 | J7: ='Endkampf Mannschaften '!I32 -> 49.4
A8: 5. | B8: ='Endkampf Mannschaften '!A6 -> Bauer Birgit | C8: ='Endkampf Mannschaften '!B6 -> Schützengau Kitzingen | D8: ='Endkampf Mannschaften '!C6 -> 102.5 | E8: ='Endkampf Mannschaften '!D6 -> 102 | F8: ='Endkampf Mannschaften '!E6 -> 105 | G8: ='Endkampf Mannschaften '!F6 -> 309.5 | H8: ='Endkampf Mannschaften '!G6 -> 17.5 | I8: ='Endkampf Mannschaften '!H6 -> 35.4 | J8: ='Endkampf Mannschaften '!I6 -> 52.9
A9: 6. | B9: ='Endkampf Mannschaften '!A15 -> Behl Herta | C9: ='Endkampf Mannschaften '!B15 -> Schützengau Main-Spessart | D9: ='Endkampf Mannschaften '!C15 -> 103.7 | E9: ='Endkampf Mannschaften '!D15 -> 102.3 | F9: ='Endkampf Mannschaften '!E15 -> 101.1 | G9: ='Endkampf Mannschaften '!F15 -> 307.1 | H9: ='Endkampf Mannschaften '!G15 -> 19.9 | I9: ='Endkampf Mannschaften '!H15 -> 43.1 | J9: ='Endkampf Mannschaften '!I15 -> 63
A10: 7. | B10: ='Endkampf Mannschaften '!A22 -> Söder Helene | C10: ='Endkampf Mannschaften '!B22 -> Schützengau Rhön-Grabfeld | D10: ='Endkampf Mannschaften '!C22 -> 100.5 | E10: ='Endkampf Mannschaften '!D22 -> 99.1 | F10: ='Endkampf Mannschaften '!E22 -> 101.5 | G10: ='Endkampf Mannschaften '!F22 -> 301.1 | H10: ='Endkampf Mannschaften '!G22 -> 25.9 | I10: ='Endkampf Mannschaften '!H22 -> 47.4 | J10: ='Endkampf Mannschaften '!I22 -> 73.3
A11: 8. | B11: ='Endkampf Mannschaften '!A30 -> Reichert Christine | C11: ='Endkampf Mannschaften '!B30 -> Schützengau Schweinfurt | D11: ='Endkampf Mannschaften '!C30 -> 102.3 | E11: ='Endkampf Mannschaften '!D30 -> 97.7 | F11: ='Endkampf Mannschaften '!E30 -> 100.9 | G11: ='Endkampf Mannschaften '!F30 -> 300.9 | H11: ='Endkampf Mannschaften '!G30 -> 26.1 | I11: ='Endkampf Mannschaften '!H30 -> 48.8 | J11: ='Endkampf Mannschaften '!I30 -> 74.9

Sheet Punkteverhältnis
A1: Einzelergebnisse Endkampf Bezirksdamenschießen 2018
A2: Bestes Punkteverhältnis (Auflage)
A3: Platz | B3: Name | C3: Gau | D3: 1. Serie | E3: 2. Serie | F3: 3. Serie | G3: Ergebnis | H3: Differenz | I3: Tiefschuss | J3: Punkte
A4: 1. | B4: ='Endkampf Mannschaften '!A5 -> Wittel Monika | C4: ='Endkampf Mannschaften '!B5 -> Schützengau Kitzingen | D4: ='Endkampf Mannschaften '!C5 -> 104.9 | E4: ='Endkampf Mannschaften '!D5 -> 104.5 | F4: ='Endkampf Mannschaften '!E5 -> 104.7 | G4: ='Endkampf Mannschaften '!F5 -> 314.1 | H4: ='Endkampf Mannschaften '!G5 -> 12.9 | I4: ='Endkampf Mannschaften '!H5 -> 15 | J4: ='Endkampf Mannschaften '!I5 -> 27.9
A5: 2. | B5: ='Endkampf Mannschaften '!A14 -> Oster Sigrid | C5: ='Endkampf Mannschaften '!B14 -> Schützengau Main-Spessart | D5: ='Endkampf Mannschaften '!C14 -> 104.4 | E5: ='Endkampf Mannschaften '!D14 -> 103.3 | F5: ='Endkampf Mannschaften '!E14 -> 103.7 | G5: ='Endkampf Mannschaften '!F14 -> 311.4 | H5: ='Endkampf Mannschaften '!G14 -> 15.6 | I5: ='Endkampf Mannschaften '!H14 -> 21.6 | J5: ='Endkampf Mannschaften '!I14 -> 37.2
A6: 3. | B6: ='Endkampf Mannschaften '!A32 -> Schad Roswitha | C6: ='Endkampf Mannschaften '!B32 -> Schützengau Schweinfurt | D6: ='Endkampf Mannschaften '!C32 -> 105.8 | E6: ='Endkampf Mannschaften '!D32 -> 99.7 | F6: ='Endkampf Mannschaften '!E32 -> 105.6 | G6: ='Endkampf Mannschaften '!F32 -> 311.1 | H6: ='Endkampf Mannschaften '!G32 -> 15.9 | I6: ='Endkampf Mannschaften '!H32 -> 33.5 | J6: ='Endkampf Mannschaften '!I32 -> 49.4
A7: 4. | B7: ='Endkampf Mannschaften '!A31 -> Sittler Gudrun | C7: ='Endkampf Mannschaften '!B31 -> Schützengau Schweinfurt | D7: ='Endkampf Mannschaften '!C31 -> 102.6 | E7: ='Endkampf Mannschaften '!D31 -> 102.9 | F7: ='Endkampf Mannschaften '!E31 -> 102.2 | G7: ='Endkampf Mannschaften '!F31 -> 307.7 | H7: ='Endkampf Mannschaften '!G31 -> 19.3 | I7: ='Endkampf Mannschaften '!H31 -> 32 | J7: ='Endkampf Mannschaften '!I31 -> 51.3
A8: 5. | B8: ='Endkampf Mannschaften '!A6 -> Bauer Birgit | C8: ='Endkampf Mannschaften '!B6 -> Schützengau Kitzingen | D8: ='Endkampf Mannschaften '!C6 -> 102.5 | E8: ='Endkampf Mannschaften '!D6 -> 102 | F8: ='Endkampf Mannschaften '!E6 -> 105 | G8: ='Endkampf Mannschaften '!F6 -> 309.5 | H8: ='Endkampf Mannschaften '!G6 -> 17.5 | I8: ='Endkampf Mannschaften '!H6 -> 35.4 | J8: ='Endkampf Mannschaften '!I6 -> 52.9
A9: 6. | B9: ='Endkampf Mannschaften '!A15 -> Behl Herta | C9: ='Endkampf Mannschaften '!B15 -> Schützengau Main-Spessart | D9: ='Endkampf Mannschaften '!C15 -> 103.7 | E9: ='Endkampf Mannschaften '!D15 -> 102.3 | F9: ='Endkampf Mannschaften '!E15 -> 101.1 | G9: ='Endkampf Mannschaften '!F15 -> 307.1 | H9: ='Endkampf Mannschaften '!G15 -> 19.9 | I9: ='Endkampf Mannschaften '!H15 -> 43.1 | J9: ='Endkampf Mannschaften '!I15 -> 63
A10: 7. | B10: ='Endkampf Mannschaften '!A22 -> Söder Helene | C10: ='Endkampf Mannschaften '!B22 -> Schützengau Rhön-Grabfeld | D10: ='Endkampf Mannschaften '!C22 -> 100.5 | E10: ='Endkampf Mannschaften '!D22 -> 99.1 | F10: ='Endkampf Mannschaften '!E22 -> 101.5 | G10: ='Endkampf Mannschaften '!F22 -> 301.1 | H10: ='Endkampf Mannschaften '!G22 -> 25.9 | I10: ='Endkampf Mannschaften '!H22 -> 47.4 | J10: ='Endkampf Mannschaften '!I22 -> 73.3
A11: 8. | B11: ='Endkampf Mannschaften '!A30 -> Reichert Christine | C11: ='Endkampf Mannschaften '!B30 -> Schützengau Schweinfurt | D11: ='Endkampf Mannschaften '!C30 -> 102.3 | E11: ='Endkampf Mannschaften '!D30 -> 97.7 | F11: ='Endkampf Mannschaften '!E30 -> 100.9 | G11: ='Endkampf Mannschaften '!F30 -> 300.9 | H11: ='Endkampf Mannschaften '!G30 -> 26.1 | I11: ='Endkampf Mannschaften '!H30 -> 48.8 | J11: ='Endkampf Mannschaften '!I30 -> 74.9

Sheet Urkunden Einzel
A1: Platz | B1: Name | C1: Gau | D1: 1. Serie | E1: 2. Serie | F1: 3. Serie | G1: Ergebnis | H1: Differenz | I1: Tiefschuss | J1: Punkte
A2: =Punkteverhältnis!A4 -> 1. | B2: =Punkteverhältnis!B4 -> Wittel Monika | C2: =Punkteverhältnis!C4 -> Schützengau Kitzingen | D2: =Punkteverhältnis!D4 -> 104.9 | E2: =Punkteverhältnis!E4 -> 104.5 | F2: =Punkteverhältnis!F4 -> 104.7 | G2: =Punkteverhältnis!G4 -> 314.1 | H2: =Punkteverhältnis!H4 -> 12.9 | I2: =Punkteverhältnis!I4 -> 15 | J2: =Punkteverhältnis!J4 -> 27.9
A3: =Punkteverhältnis!A5 -> 2. | B3: =Punkteverhältnis!B5 -> Oster Sigrid | C3: =Punkteverhältnis!C5 -> Schützengau Main-Spessart | D3: =Punkteverhältnis!D5 -> 104.4 | E3: =Punkteverhältnis!E5 -> 103.3 | F3: =Punkteverhältnis!F5 -> 103.7 | G3: =Punkteverhältnis!G5 -> 311.4 | H3: =Punkteverhältnis!H5 -> 15.6 | I3: =Punkteverhältnis!I5 -> 21.6 | J3: =Punkteverhältnis!J5 -> 37.2
A4: =Punkteverhältnis!#REF! ->  | B4: =Punkteverhältnis!#REF! ->  | C4: =Punkteverhältnis!#REF! ->  | D4: =Punkteverhältnis!#REF! ->  | E4: =Punkteverhältnis!#REF! ->  | F4: =Punkteverhältnis!#REF! ->  | G4: =Punkteverhältnis!#REF! ->  | H4: =Punkteverhältnis!#REF! ->  | I4: =Punkteverhältnis!#REF! ->  | J4: =Punkteverhältnis!#REF! -> 
A5: =Punkteverhältnis!A6 -> 3. | B5: =Punkteverhältnis!B6 -> Schad Roswitha | C5: =Punkteverhältnis!C6 -> Schützengau Schweinfurt | D5: =Punkteverhältnis!D6 -> 105.8 | E5: =Punkteverhältnis!E6 -> 99.7 | F5: =Punkteverhältnis!F6 -> 105.6 | G5: =Punkteverhältnis!G6 -> 311.1 | H5: =Punkteverhältnis!H6 -> 15.9 | I5: =Punkteverhältnis!I6 -> 33.5 | J5: =Punkteverhältnis!J6 -> 49.4
A6: =Punkteverhältnis!A7 -> 4. | B6: =Punkteverhältnis!B7 -> Sittler Gudrun | C6: =Punkteverhältnis!C7 -> Schützengau Schweinfurt | D6: =Punkteverhältnis!D7 -> 102.6 | E6: =Punkteverhältnis!E7 -> 102.9 | F6: =Punkteverhältnis!F7 -> 102.2 | G6: =Punkteverhältnis!G7 -> 307.7 | H6: =Punkteverhältnis!H7 -> 19.3 | I6: =Punkteverhältnis!I7 -> 32 | J6: =Punkteverhältnis!J7 -> 51.3
A7: =Punkteverhältnis!#REF! ->  | B7: =Punkteverhältnis!#REF! ->  | C7: =Punkteverhältnis!#REF! ->  | D7: =Punkteverhältnis!#REF! ->  | E7: =Punkteverhältnis!#REF! ->  | F7: =Punkteverhältnis!#REF! ->  | G7: =Punkteverhältnis!#REF! ->  | H7: =Punkteverhältnis!#REF! ->  | I7: =Punkteverhältnis!#REF! ->  | J7: =Punkteverhältnis!#REF! -> 
A8: =Punkteverhältnis!A8 -> 5. | B8: =Punkteverhältnis!B8 -> Bauer Birgit | C8: =Punkteverhältnis!C8 -> Schützengau Kitzingen | D8: =Punkteverhältnis!D8 -> 102.5 | E8: =Punkteverhältnis!E8 -> 102 | F8: =Punkteverhältnis!F8 -> 105 | G8: =Punkteverhältnis!G8 -> 309.5 | H8: =Punkteverhältnis!H8 -> 17.5 | I8: =Punkteverhältnis!I8 -> 35.4 | J8: =Punkteverhältnis!J8 -> 52.9
A9: =Punkteverhältnis!#REF! ->  | B9: =Punkteverhältnis!#REF! ->  | C9: =Punkteverhältnis!#REF! ->  | D9: =Punkteverhältnis!#REF! ->  | E9: =Punkteverhältnis!#REF! ->  | F9: =Punkteverhältnis!#REF! ->  | G9: =Punkteverhältnis!#REF! ->  | H9: =Punkteverhältnis!#REF! ->  | I9: =Punkteverhältnis!#REF! ->  | J9: =Punkteverhältnis!#REF! -> 
A10: =Punkteverhältnis!#REF! ->  | B10: =Punkteverhältnis!#REF! ->  | C10: =Punkteverhältnis!#REF! ->  | D10: =Punkteverhältnis!#REF! ->  | E10: =Punkteverhältnis!#REF! ->  | F10: =Punkteverhältnis!#REF! ->  | G10: =Punkteverhältnis!#REF! ->  | H10: =Punkteverhältnis!#REF! ->  | I10: =Punkteverhältnis!#REF! ->  | J10: =Punkteverhältnis!#REF! -> 
A11: =Punkteverhältnis!A9 -> 6. | B11: =Punkteverhältnis!B9 -> Behl Herta | C11: =Punkteverhältnis!C9 -> Schützengau Main-Spessart | D11: =Punkteverhältnis!D9 -> 103.7 | E11: =Punkteverhältnis!E9 -> 102.3 | F11: =Punkteverhältnis!F9 -> 101.1 | G11: =Punkteverhältnis!G9 -> 307.1 | H11: =Punkteverhältnis!H9 -> 19.9 | I11: =Punkteverhältnis!I9 -> 43.1 | J11: =Punkteverhältnis!J9 -> 63
A12: =Punkteverhältnis!A10 -> 7. | B12: =Punkteverhältnis!B10 -> Söder Helene | C12: =Punkteverhältnis!C10 -> Schützengau Rhön-Grabfeld | D12: =Punkteverhältnis!D10 -> 100.5 | E12: =Punkteverhältnis!E10 -> 99.1 | F12: =Punkteverhältnis!F10 -> 101.5 | G12: =Punkteverhältnis!G10 -> 301.1 | H12: =Punkteverhältnis!H10 -> 25.9 | I12: =Punkteverhältnis!I10 -> 47.4 | J12: =Punkteverhältnis!J10 -> 73.3
A13: =Punkteverhältnis!A11 -> 8. | B13: =Punkteverhältnis!B11 -> Reichert Christine | C13: =Punkteverhältnis!C11 -> Schützengau Schweinfurt | D13: =Punkteverhältnis!D11 -> 102.3 | E13: =Punkteverhältnis!E11 -> 97.7 | F13: =Punkteverhältnis!F11 -> 100.9 | G13: =Punkteverhältnis!G11 -> 300.9 | H13: =Punkteverhältnis!H11 -> 26.1 | I13: =Punkteverhältnis!I11 -> 48.8 | J13: =Punkteverhältnis!J11 -> 74.9
A14: =Punkteverhältnis!#REF! ->  | B14: =Punkteverhältnis!#REF! ->  | C14: =Punkteverhältnis!#REF! ->  | D14: =Punkteverhältnis!#REF! ->  | E14: =Punkteverhältnis!#REF! ->  | F14: =Punkteverhältnis!#REF! ->  | G14: =Punkteverhältnis!#REF! ->  | H14: =Punkteverhältnis!#REF! ->  | I14: =Punkteverhältnis!#REF! ->  | J14: =Punkteverhältnis!#REF! -> 
A15: =Punkteverhältnis!#REF! ->  | B15: =Punkteverhältnis!#REF! ->  | C15: =Punkteverhältnis!#REF! ->  | D15: =Punkteverhältnis!#REF! ->  | E15: =Punkteverhältnis!#REF! ->  | F15: =Punkteverhältnis!#REF! ->  | G15: =Punkteverhältnis!#REF! ->  | H15: =Punkteverhältnis!#REF! ->  | I15: =Punkteverhältnis!#REF! ->  | J15: =Punkteverhältnis!#REF! -> 
A16: =Punkteverhältnis!#REF! ->  | B16: =Punkteverhältnis!#REF! ->  | C16: =Punkteverhältnis!#REF! ->  | D16: =Punkteverhältnis!#REF! ->  | E16: =Punkteverhältnis!#REF! ->  | F16: =Punkteverhältnis!#REF! ->  | G16: =Punkteverhältnis!#REF! ->  | H16: =Punkteverhältnis!#REF! ->  | I16: =Punkteverhältnis!#REF! ->  | J16: =Punkteverhältnis!#REF! -> 
